fUST/lending_fUST_20240817
["ID","MTS","AMOUNT","RATE_DAILY","PERIOD"]
[335096088,1723824650439,-502.68218363,0.00043835,120]
[335096089,1723824650449,-500.0,0.00043835,120]
[335096090,1723824650458,-502.11644652,0.00043835,120]
[335096091,1723824650468,-556.81075673,0.00043835,120]
[335096092,1723824650477,-500.0,0.00043835,120]
[335096093,1723824650487,-500.0,0.00043835,120]
[335096094,1723824650496,-511.27677613,0.00043835,120]
[335096095,1723824650505,-500.0,0.00043835,120]
[335096096,1723824650515,-500.0,0.00043835,120]
[335096097,1723824650525,-500.0,0.00043835,120]
[335096098,1723824650534,-645.31,0.00043835,120]
[335096099,1723824650544,-500.0,0.00043835,120]
[335096100,1723824650553,-500.0,0.00043835,120]
[335096101,1723824650563,-500.0,0.00043835,120]
[335096102,1723824650573,-500.0,0.00043835,120]
[335096103,1723824650583,-514.38118778,0.00043835,120]
[335096104,1723824650591,-500.0,0.00043835,120]
[335096105,1723824650601,-305.78923991,0.00043835,120]
[335096106,1723824650713,-500.0,0.00043835,120]
[335096107,1723824650723,-500.0,0.00043835,120]
[335096108,1723824650734,-500.0,0.00043835,120]
[335096109,1723824650745,-500.0,0.00043835,120]
[335096110,1723824650758,-741.27,0.00043835,120]
[335096111,1723824650768,-741.27,0.00043835,120]
[335096112,1723824650778,-500.0,0.00043835,120]
[335096113,1723824650787,-500.0,0.00043835,120]
[335096114,1723824650797,-741.27,0.00043835,120]
[335096115,1723824650808,-500.0,0.00043835,120]
[335096116,1723824650818,-741.27,0.00043835,120]
[335096117,1723824650829,-741.27,0.00043835,120]
[335096118,1723824650841,-500.0,0.00043835,120]
[335096119,1723824650852,-741.27,0.00043835,120]
[335096120,1723824650861,-741.27,0.00043835,120]
[335096121,1723824650871,-741.27,0.00043835,120]
[335096122,1723824650880,-741.27,0.00043835,120]
[335096123,1723824650890,-741.27,0.00043835,120]
[335096124,1723824650900,-741.27,0.00043835,120]
[335096125,1723824650910,-741.27,0.00043835,120]
[335096126,1723824650919,-741.27,0.00043835,120]
[335096127,1723824650929,-500.0,0.00043835,120]
[335096128,1723824650938,-741.27,0.00043835,120]
[335096129,1723824650947,-741.27,0.00043835,120]
[335096130,1723824650957,-741.27,0.00043835,120]
[335096131,1723824650967,-741.27,0.00043835,120]
[335096132,1723824650977,-500.0,0.00043835,120]
[335096133,1723824650986,-741.27,0.00043835,120]
[335096134,1723824650996,-266.61488252,0.00043835,120]
[335096135,1723824651006,-741.27,0.00043835,120]
[335096136,1723824651016,-741.27,0.00043835,120]
[335096137,1723824651026,-699.13,0.00043835,120]
[335096138,1723824651036,-741.27,0.00043835,120]
[335096139,1723824651046,-741.27,0.00043835,120]
[335096140,1723824651055,-500.0,0.00043835,120]
[335096141,1723824651065,-741.27,0.00043835,120]
[335096142,1723824651075,-741.31143265,0.00043835,120]
[335096143,1723824651085,-500.0,0.00043835,120]
[335096144,1723824651094,-500.0,0.00043835,120]
[335096145,1723824651104,-500.0,0.00043835,120]
[335096146,1723824651113,-500.0,0.00043835,120]
[335096147,1723824651123,-500.0,0.00043835,120]
[335096148,1723824651132,-500.0,0.00043835,120]
[335096149,1723824651142,-500.0,0.00043835,120]
[335096150,1723824651151,-500.0,0.00043835,120]
[335096151,1723824651160,-176.47094354,0.00043835,120]
[335096152,1723824651171,-200.0,0.00043835,7]
[335096153,1723824651180,-501.89642165,0.00043835,120]
[335096154,1723824651189,-644.7,0.00043835,120]
[335096155,1723824651199,-500.0,0.00043835,120]
[335096156,1723824651208,-500.0,0.00043835,120]
[335096157,1723824651220,-300.84939592,0.00043835,120]
[335096158,1723824651232,-544.51,0.00043835,120]
[335096159,1723824651243,-500.0,0.00043835,120]
[335096160,1723824651254,-510.2088981,0.00043835,120]
[335096161,1723824651265,-500.0,0.00043835,120]
[335096162,1723824651275,-436.41984262,0.00043835,120]
[335096163,1723824651285,-500.0,0.00043835,120]
[335096164,1723824651296,-506.79818407,0.00043835,120]
[335096165,1723824651306,-693.59,0.00043835,120]
[335096166,1723824651316,-534.92153647,0.00043835,120]
[335096167,1723824651326,-2148.57,0.00043835,120]
[335096168,1723824651335,-548.58,0.00043835,120]
[335096169,1723824651345,-500.0,0.00043835,120]
[335096170,1723824651355,-500.0,0.00043835,120]
[335096171,1723824651364,-500.0,0.00043835,120]
[335096172,1723824651374,-506.65245615,0.00043835,120]
[335096173,1723824651385,-500.0,0.00043835,120]
[335096174,1723824651395,-500.0,0.00043835,120]
[335096175,1723824651405,-501.38324798,0.00043835,120]
[335096176,1723824651415,-500.0,0.00043835,120]
[335096177,1723824651424,-507.90365958,0.00043835,120]
[335096178,1723824651434,-508.46071894,0.00043835,120]
[335096179,1723824651445,-500.0,0.00043835,120]
[335096180,1723824651455,-500.0,0.00043835,120]
[335096181,1723824651464,-504.27944199,0.00043835,120]
[335096182,1723824651474,-500.0,0.00043835,120]
[335096183,1723824651483,-500.0,0.00043835,120]
[335096184,1723824651492,-504.53005604,0.00043835,120]
[335096185,1723824651502,-1328.88,0.00043835,120]
[335096186,1723824651511,-500.0,0.00043835,120]
[335096187,1723824651521,-500.0,0.00043835,120]
[335096188,1723824651530,-504.67987072,0.00043835,120]
[335096189,1723824651539,-500.0,0.00043835,120]
[335096190,1723824651549,-500.0,0.00043835,120]
[335096191,1723824651558,-500.0,0.00043835,120]
[335096192,1723824651567,-500.0,0.00043835,120]
[335096193,1723824651578,-500.0,0.00043835,20]
[335096194,1723824651587,-500.0,0.00043835,120]
[335096195,1723824651597,-500.0,0.00043835,120]
[335096196,1723824651607,-500.0,0.00043835,120]
[335096197,1723824651616,-500.0,0.00043835,120]
[335096198,1723824651626,-500.0,0.00043835,120]
[335096199,1723824651635,-500.0,0.00043835,120]
[335096200,1723824651645,-500.0,0.00043835,120]
[335096201,1723824651655,-500.0,0.00043835,120]
[335096202,1723824651664,-500.0,0.00043835,120]
[335096203,1723824651674,-500.0,0.00043835,120]
[335096204,1723824651683,-500.0,0.00043835,120]
[335096205,1723824651693,-500.0,0.00043835,120]
[335096206,1723824651702,-611.73679686,0.00043835,120]
[335096207,1723824651713,-500.0,0.00043835,120]
[335096208,1723824651723,-500.0,0.00043835,120]
[335096209,1723824651733,-500.84370357,0.00043835,120]
[335096210,1723824651742,-635.25,0.00043835,120]
[335096211,1723824651751,-500.0,0.00043835,120]
[335096212,1723824651761,-500.0,0.00043835,120]
[335096213,1723824651772,-500.0,0.00043835,120]
[335096214,1723824651781,-500.0,0.00043835,120]
[335096215,1723824651792,-503.18206037,0.00043835,120]
[335096216,1723824651801,-509.98478951,0.00043835,120]
[335096217,1723824651811,-501.77046906,0.00043835,120]
[335096218,1723824651821,-500.0,0.00043835,120]
[335096219,1723824651830,-500.0,0.00043835,120]
[335096220,1723824651839,-500.0,0.00043835,120]
[335096221,1723824651851,-1192.76,0.00043835,7]
[335096222,1723824651862,-506.27060096,0.00043835,120]
[335096223,1723824651872,-500.0,0.00043835,120]
[335096224,1723824651881,-500.0,0.00043835,120]
[335096225,1723824651890,-500.0,0.00043835,120]
[335096226,1723824651900,-500.28936715,0.00043835,120]
[335096227,1723824651909,-500.0,0.00043835,120]
[335096228,1723824651919,-500.0,0.00043835,120]
[335096229,1723824651928,-531.01320266,0.00043835,120]
[335096230,1723824651937,-500.0,0.00043835,120]
[335096231,1723824651947,-354.40660864,0.00043835,120]
[335096232,1723824651956,-329.88763249,0.00043835,120]
[335096233,1723824651965,-500.0,0.00043835,120]
[335096234,1723824651975,-185.87554903,0.00043835,120]
[335096235,1723824651984,-500.7796456,0.00043835,120]
[335096236,1723824651993,-500.0,0.00043835,120]
[335096237,1723824652002,-500.0,0.00043835,120]
[335096238,1723824652011,-500.0,0.00043835,120]
[335096239,1723824652021,-500.0,0.00043835,120]
[335096240,1723824652031,-541.7301274,0.00043835,120]
[335096241,1723824652040,-500.0,0.00043835,120]
[335096242,1723824652049,-500.0,0.00043835,120]
[335096243,1723824652059,-500.0,0.00043835,120]
[335096244,1723824652069,-500.0,0.00043835,120]
[335096245,1723824652080,-1451.49,0.00043835,60]
[335096246,1723824652089,-500.0,0.00043835,120]
[335096247,1723824652098,-500.0,0.00043835,120]
[335096248,1723824652108,-500.0,0.00043835,120]
[335096249,1723824652117,-500.0,0.00043835,120]
[335096250,1723824652126,-500.0,0.00043835,120]
[335096251,1723824652136,-500.0,0.00043835,120]
[335096252,1723824652146,-501.52531322,0.00043835,120]
[335096253,1723824652156,-500.0,0.00043835,120]
[335096254,1723824652167,-596.65207557,0.00043835,120]
[335096255,1723824652178,-500.0,0.00043835,120]
[335096256,1723824652189,-500.0,0.00043835,120]
[335096257,1723824652199,-500.0,0.00043835,120]
[335096258,1723824652210,-500.0,0.00043835,120]
[335096259,1723824652223,-500.0,0.00043835,120]
[335096260,1723824652235,-500.93352816,0.00043835,120]
[335096261,1723824652244,-500.0,0.00043835,120]
[335096262,1723824652253,-508.14075703,0.00043835,120]
[335096263,1723824652266,-596.74,0.00043835,120]
[335096264,1723824652276,-918.61,0.00043835,120]
[335096265,1723824652286,-500.0,0.00043835,120]
[335096266,1723824652300,-500.0,0.00043835,120]
[335096267,1723824652311,-500.0,0.00043835,120]
[335096268,1723824652321,-500.0,0.00043835,120]
[335096269,1723824652331,-500.0,0.00043835,120]
[335096270,1723824652340,-500.0,0.00043835,120]
[335096271,1723824652351,-500.0,0.00043835,120]
[335096272,1723824652362,-500.0,0.00043835,120]
[335096273,1723824652372,-500.0,0.00043835,120]
[335096274,1723824652381,-201.12130316,0.00043835,120]
[335096275,1723824652391,-500.0,0.00043835,120]
[335096276,1723824652401,-500.0,0.00043835,120]
[335096277,1723824652410,-500.0,0.00043835,120]
[335096278,1723824652422,-500.0,0.00043835,120]
[335096279,1723824652433,-512.20549153,0.00043835,120]
[335096280,1723824652442,-500.0,0.00043835,120]
[335096281,1723824652452,-500.0,0.00043835,120]
[335096282,1723824652462,-503.26745851,0.00043835,120]
[335096283,1723824652471,-166.5354572,0.00043835,120]
[335096284,1723824652480,-547.91,0.00043835,120]
[335096285,1723824652489,-500.0,0.00043835,120]
[335096286,1723824652498,-500.0,0.00043835,120]
[335096287,1723824652508,-500.0,0.00043835,120]
[335096288,1723824652517,-629.55,0.00043835,120]
[335096289,1723824652526,-643.97,0.00043835,120]
[335096290,1723824652535,-505.08551537,0.00043835,120]
[335096291,1723824652545,-500.0,0.00043835,120]
[335096292,1723824652554,-500.0,0.00043835,120]
[335096293,1723824652563,-500.0,0.00043835,120]
[335096294,1723824652573,-500.0,0.00043835,120]
[335096295,1723824652583,-500.0,0.00043835,120]
[335096296,1723824652592,-500.0,0.00043835,120]
[335096297,1723824652601,-500.0,0.00043835,120]
[335096298,1723824652611,-500.0,0.00043835,120]
[335096299,1723824652621,-500.0,0.00043835,120]
[335096300,1723824652631,-508.7420227,0.00043835,120]
[335096301,1723824652641,-500.0,0.00043835,120]
[335096302,1723824652650,-500.0,0.00043835,120]
[335096303,1723824652659,-500.0,0.00043835,120]
[335096304,1723824652668,-500.0,0.00043835,120]
[335096305,1723824652678,-500.0,0.00043835,120]
[335096306,1723824652687,-500.0,0.00043835,120]
[335096307,1723824652697,-645.09545101,0.00043835,120]
[335096308,1723824652706,-500.0,0.00043835,120]
[335096309,1723824652717,-500.0,0.00043835,120]
[335096310,1723824652726,-500.0,0.00043835,120]
[335096311,1723824652736,-500.0,0.00043835,120]
[335096312,1723824652746,-500.0,0.00043835,120]
[335096313,1723824652755,-451.75086846,0.00043835,120]
[335096314,1723824652764,-500.0,0.00043835,120]
[335096315,1723824652774,-500.0,0.00043835,120]
[335096316,1723824652784,-609.08,0.00043835,120]
[335096317,1723824652793,-1016.45,0.00043835,120]
[335096318,1723824652802,-500.0,0.00043835,120]
[335096319,1723824652812,-500.0,0.00043835,120]
[335096320,1723824652822,-500.79753519,0.00043835,120]
[335096321,1723824652832,-788.01,0.00043835,120]
[335096322,1723824652842,-500.0,0.00043835,120]
[335096323,1723824652851,-500.0,0.00043835,120]
[335096324,1723824652861,-500.0,0.00043835,120]
[335096325,1723824652870,-500.0,0.00043835,120]
[335096326,1723824652880,-500.0,0.00043835,120]
[335096327,1723824652889,-608.08844114,0.00043835,120]
[335096328,1723824652898,-500.0,0.00043835,30]
[335096329,1723824652907,-500.0,0.00043835,120]
[335096330,1723824652917,-500.0,0.00043835,120]
[335096331,1723824652927,-501.90631069,0.00043835,120]
[335096332,1723824652936,-500.0,0.00043835,120]
[335096333,1723824652945,-500.0,0.00043835,120]
[335096334,1723824652954,-500.0,0.00043835,120]
[335096335,1723824652964,-518.24,0.00043835,120]
[335096336,1723824652973,-500.0,0.00043835,120]
[335096337,1723824652983,-500.0,0.00043835,120]
[335096338,1723824652992,-500.0,0.00043835,2]
[335096339,1723824653001,-500.0,0.00043835,120]
[335096340,1723824653010,-500.0,0.00043835,120]
[335096341,1723824653018,-500.0,0.00043835,120]
[335096342,1723824653028,-500.0,0.00043835,7]
[335096343,1723824653038,-500.0,0.00043835,120]
[335096344,1723824653049,-500.0,0.00043835,120]
[335096345,1723824653058,-894.34,0.00043835,120]
[335096346,1723824653070,-500.0,0.00043835,120]
[335096347,1723824653079,-529.42974799,0.00043835,120]
[335096348,1723824653089,-500.0,0.00043835,120]
[335096349,1723824653098,-500.0,0.00043835,120]
[335096350,1723824653108,-502.68751037,0.00043835,120]
[335096351,1723824653117,-500.0,0.00043835,120]
[335096352,1723824653126,-500.0,0.00043835,120]
[335096353,1723824653135,-500.0,0.00043835,120]
[335096354,1723824653144,-504.84960246,0.00043835,120]
[335096355,1723824653154,-500.0,0.00043835,120]
[335096356,1723824653164,-513.1413314,0.00043835,120]
[335096357,1723824653173,-500.0,0.00043835,120]
[335096358,1723824653182,-500.0,0.00043835,120]
[335096359,1723824653191,-643.91,0.00043835,120]
[335096360,1723824653201,-500.0,0.00043835,120]
[335096361,1723824653210,-500.0,0.00043835,120]
[335096362,1723824653222,-900.79,0.00043835,120]
[335096363,1723824653231,-500.0,0.00043835,120]
[335096364,1723824653241,-462.92434819,0.00043835,120]
[335096365,1723824653250,-514.32432617,0.00043835,120]
[335096366,1723824653259,-500.0,0.00043835,120]
[335096367,1723824653269,-884.47,0.00043835,120]
[335096368,1723824653278,-500.0,0.00043835,120]
[335096369,1723824653288,-500.0,0.00043835,120]
[335096370,1723824653299,-500.0,0.00043835,120]
[335096371,1723824653309,-500.0,0.00043835,120]
[335096372,1723824653318,-500.0,0.00043835,120]
[335096373,1723824653330,-506.43482426,0.00043835,20]
[335096374,1723824653341,-500.0,0.00043835,120]
[335096375,1723824653350,-500.0,0.00043835,120]
[335096376,1723824653466,-500.0,0.00043835,120]
[335096377,1723824653476,-737.86,0.00043835,120]
[335096378,1723824653485,-503.80439359,0.00043835,120]
[335096379,1723824653495,-1177.09,0.00043835,120]
[335096380,1723824653504,-500.0,0.00043835,120]
[335096381,1723824653513,-500.0,0.00043835,120]
[335096382,1723824653522,-746.07,0.00043835,120]
[335096383,1723824653531,-500.0,0.00043835,120]
[335096384,1723824653541,-500.0,0.00043835,120]
[335096385,1723824653550,-546.74420096,0.00043835,120]
[335096386,1723824653560,-536.87992103,0.00043835,120]
[335096387,1723824653570,-1036.78,0.00043835,120]
[335096388,1723824653581,-668.74,0.00043835,120]
[335096389,1723824653590,-500.0,0.00043835,120]
[335096390,1723824653600,-500.0,0.00043835,120]
[335096391,1723824653610,-500.0,0.00043835,120]
[335096392,1723824653619,-500.0,0.00043835,120]
[335096393,1723824653627,-500.30633317,0.00043835,120]
[335096394,1723824653636,-500.0,0.00043835,120]
[335096395,1723824653646,-500.65,0.00043835,120]
[335096396,1723824653656,-500.65,0.00043835,120]
[335096397,1723824653665,-500.65,0.00043835,120]
[335096398,1723824653675,-500.65,0.00043835,120]
[335096399,1723824653685,-500.0,0.00043835,120]
[335096400,1723824653695,-500.65,0.00043835,120]
[335096401,1723824653704,-500.65,0.00043835,120]
[335096402,1723824653714,-500.65,0.00043835,120]
[335096403,1723824653724,-500.65,0.00043835,120]
[335096404,1723824653733,-500.65,0.00043835,120]
[335096405,1723824653743,-500.65,0.00043835,120]
[335096406,1723824653753,-500.65,0.00043835,120]
[335096407,1723824653763,-500.0,0.00043835,120]
[335096408,1723824653773,-500.65,0.00043835,120]
[335096409,1723824653783,-500.65,0.00043835,120]
[335096410,1723824653793,-673.85,0.00043835,120]
[335096411,1723824653803,-500.65,0.00043835,120]
[335096412,1723824653812,-500.65,0.00043835,120]
[335096413,1723824653821,-1541.74,0.00043835,120]
[335096414,1723824653839,-500.65,0.00043835,120]
[335096415,1723824653849,-1541.74,0.00043835,120]
[335096416,1723824653859,-500.65,0.00043835,120]
[335096417,1723824653868,-1541.74,0.00043835,120]
[335096418,1723824653877,-1541.74,0.00043835,120]
[335096419,1723824653887,-500.65,0.00043835,120]
[335096420,1723824653897,-500.65,0.00043835,120]
[335096421,1723824653907,-1541.74,0.00043835,120]
[335096422,1723824653916,-504.33857061,0.00043835,120]
[335096423,1723824653925,-1541.74,0.00043835,120]
[335096424,1723824653935,-500.65,0.00043835,120]
[335096425,1723824653944,-500.0,0.00043835,120]
[335096426,1723824653954,-1541.74,0.00043835,120]
[335096427,1723824653963,-500.65,0.00043835,120]
[335096428,1723824653973,-1541.74,0.00043835,120]
[335096429,1723824653982,-500.65,0.00043835,120]
[335096430,1723824653991,-1541.74,0.00043835,120]
[335096431,1723824654000,-1541.74,0.00043835,120]
[335096432,1723824654010,-500.65,0.00043835,120]
[335096433,1723824654019,-1541.74,0.00043835,120]
[335096434,1723824654028,-500.8262231,0.00043835,120]
[335096435,1723824654038,-1541.74,0.00043835,120]
[335096436,1723824654047,-1541.74,0.00043835,120]
[335096437,1723824654057,-500.0,0.00043835,120]
[335096438,1723824654067,-1541.74,0.00043835,120]
[335096439,1723824654077,-1541.74,0.00043835,120]
[335096440,1723824654086,-1541.74,0.00043835,120]
[335096441,1723824654096,-1541.74,0.00043835,120]
[335096442,1723824654105,-501.91907112,0.00043835,120]
[335096443,1723824654115,-1541.74,0.00043835,120]
[335096444,1723824654124,-500.0,0.00043835,120]
[335096445,1723824654133,-1541.74,0.00043835,120]
[335096446,1723824654143,-1541.74,0.00043835,120]
[335096447,1723824654152,-1541.74,0.00043835,120]
[335096448,1723824654162,-1541.74,0.00043835,120]
[335096449,1723824654171,-1541.74,0.00043835,120]
[335096450,1723824654182,-1541.88454231,0.00043835,120]
[335096451,1723824654192,-500.0,0.00043835,120]
[335096452,1723824654203,-500.0,0.00043835,120]
[335096453,1723824654214,-500.0,0.00043835,120]
[335096454,1723824654228,-783.75,0.00043835,120]
[335096455,1723824654238,-500.0,0.00043835,120]
[335096456,1723824654247,-902.95,0.00043835,120]
[335096457,1723824654256,-536.69157138,0.00043835,120]
[335096458,1723824654266,-500.0,0.00043835,120]
[335096459,1723824654275,-500.0,0.00043835,120]
[335096460,1723824654285,-500.0,0.00043835,120]
[335096461,1723824654295,-563.5,0.00043835,120]
[335096462,1723824654305,-500.0,0.00043835,120]
[335096463,1723824654315,-500.0,0.00043835,120]
[335096464,1723824654324,-500.0,0.00043835,120]
[335096465,1723824654334,-545.31,0.00043835,120]
[335096466,1723824654343,-631.65,0.00043835,120]
[335096467,1723824654352,-507.81119699,0.00043835,120]
[335096468,1723824654363,-500.0,0.00043835,120]
[335096469,1723824654373,-500.0,0.00043835,120]
[335096470,1723824654382,-500.0,0.00043835,120]
[335096471,1723824654391,-500.0,0.00043835,120]
[335096472,1723824654400,-500.0,0.00043835,120]
[335096473,1723824654410,-500.0,0.00043835,120]
[335096474,1723824654420,-500.0,0.00043835,120]
[335096475,1723824654431,-500.0,0.00043835,120]
[335096476,1723824654442,-1145.47,0.00043835,120]
[335096477,1723824654454,-500.0,0.00043835,120]
[335096478,1723824654463,-500.0,0.00043835,120]
[335096479,1723824654473,-500.0,0.00043835,120]
[335096480,1723824654483,-500.0,0.00043835,120]
[335096481,1723824654492,-500.0,0.00043835,120]
[335096482,1723824654501,-500.0,0.00043835,120]
[335096483,1723824654511,-901.73,0.00043835,120]
[335096484,1723824654522,-500.0,0.00043835,120]
[335096485,1723824654534,-500.16305066,0.00043835,120]
[335096486,1723824654545,-500.0,0.00043835,120]
[335096487,1723824654555,-501.50864127,0.00043835,120]
[335096488,1723824654566,-10260.67,0.00043835,120]
[335096489,1723824654577,-581.08,0.00043835,120]
[335096490,1723824654586,-500.0,0.00043835,120]
[335096491,1723824654595,-504.23447486,0.00043835,120]
[335096492,1723824654604,-581.08,0.00043835,120]
[335096493,1723824654614,-581.08,0.00043835,120]
[335096494,1723824654624,-581.08,0.00043835,120]
[335096495,1723824654634,-581.08,0.00043835,120]
[335096496,1723824654643,-581.08,0.00043835,120]
[335096497,1723824654653,-500.0,0.00043835,120]
[335096498,1723824654663,-581.08,0.00043835,120]
[335096499,1723824654674,-581.08,0.00043835,120]
[335096500,1723824654685,-581.08,0.00043835,120]
[335096501,1723824654695,-581.08,0.00043835,120]
[335096502,1723824654704,-581.08,0.00043835,120]
[335096503,1723824654714,-500.0,0.00043835,120]
[335096504,1723824654723,-581.08,0.00043835,120]
[335096505,1723824654733,-581.08,0.00043835,120]
[335096506,1723824654742,-500.0,0.00043835,120]
[335096507,1723824654753,-581.08,0.00043835,120]
[335096508,1723824654763,-500.0,0.00043835,120]
[335096509,1723824654773,-581.08,0.00043835,120]
[335096510,1723824654783,-500.0,0.00043835,120]
[335096511,1723824654794,-500.0,0.00043835,120]
[335096512,1723824654804,-581.08,0.00043835,120]
[335096513,1723824654814,-500.0,0.00043835,120]
[335096514,1723824654827,-581.08,0.00043835,120]
[335096515,1723824654837,-581.08,0.00043835,120]
[335096516,1723824654847,-581.08,0.00043835,120]
[335096517,1723824654857,-581.08,0.00043835,120]
[335096518,1723824654866,-501.51045641,0.00043835,120]
[335096519,1723824654875,-581.08,0.00043835,120]
[335096520,1723824654884,-581.08,0.00043835,120]
[335096521,1723824654895,-581.08,0.00043835,120]
[335096522,1723824654905,-500.0,0.00043835,120]
[335096523,1723824654915,-581.12665062,0.00043835,120]
[335096524,1723824654924,-500.0,0.00043835,120]
[335096525,1723824654934,-500.0,0.00043835,120]
[335096526,1723824654943,-500.0,0.00043835,120]
[335096527,1723824654953,-764.92,0.00043835,120]
[335096528,1723824654963,-500.0,0.00043835,120]
[335096529,1723824654971,-500.0,0.00043835,120]
[335096530,1723824654981,-500.0,0.00043835,120]
[335096531,1723824654991,-502.02026745,0.00043835,120]
[335096532,1723824655000,-500.0,0.00043835,120]
[335096533,1723824655009,-2987.82,0.00043835,21]
[335096534,1723824655019,-716.98,0.00043835,120]
[335096535,1723824655028,-666.64,0.00043835,120]
[335096536,1723824655037,-523.13109607,0.00043835,120]
[335096537,1723824655046,-1201.98,0.00043835,120]
[335096538,1723824655056,-637.84,0.00043835,120]
[335096539,1723824655065,-500.0,0.00043835,120]
[335096540,1723824655077,-2511.6,0.00043835,120]
[335096541,1723824655086,-500.0,0.00043835,120]
[335096542,1723824655095,-500.0,0.00043835,120]
[335096543,1723824655104,-723.54,0.00043835,120]
[335096544,1723824655113,-488.10826709,0.00043835,120]
[335096545,1723824655122,-576.16,0.00043835,120]
[335096546,1723824655131,-500.0,0.00043835,120]
[335096547,1723824655140,-500.0,0.00043835,120]
[335096548,1723824655150,-500.0,0.00043835,120]
[335096549,1723824655159,-288.5780147,0.00043835,120]
[335096550,1723824655169,-500.0,0.00043835,120]
[335096551,1723824655178,-500.0,0.00043835,120]
[335096552,1723824655187,-500.0,0.00043835,120]
[335096553,1723824655196,-500.0,0.00043835,120]
[335096554,1723824655206,-500.0,0.00043835,120]
[335096555,1723824655217,-500.0,0.00043835,120]
[335096556,1723824655229,-500.0,0.00043835,120]
[335096557,1723824655238,-500.0,0.00043835,120]
[335096558,1723824655248,-1882.03,0.00043835,120]
[335096559,1723824655259,-500.0,0.00043835,120]
[335096560,1723824655268,-569.08671587,0.00043835,120]
[335096561,1723824655278,-513.66216797,0.00043835,120]
[335096562,1723824655287,-500.0,0.00043835,120]
[335096563,1723824655298,-1029.66,0.00043835,120]
[335096564,1723824655307,-500.0,0.00043835,120]
[335096565,1723824655317,-1896.05,0.00043835,120]
[335096566,1723824655329,-815.8,0.00043835,120]
[335096567,1723824655339,-500.0,0.00043835,120]
[335096568,1723824655347,-4568.8,0.00043835,120]
[335096569,1723824655361,-560.63293851,0.00043835,120]
[335096570,1723824655370,-472.63373007,0.00043835,120]
[335096571,1723824655379,-947.25,0.00043835,120]
[335096572,1723824655389,-500.0,0.00043835,120]
[335096573,1723824655398,-500.0,0.00043835,120]
[335096574,1723824655407,-797.6,0.00043835,120]
[335096575,1723824655417,-975.37,0.00043835,120]
[335096576,1723824655427,-500.0,0.00043835,120]
[335096577,1723824655436,-500.0,0.00043835,60]
[335096578,1723824655445,-500.62320602,0.00043835,120]
[335096579,1723824655456,-513.95437256,0.00043835,120]
[335096580,1723824655466,-500.0,0.00043835,120]
[335096581,1723824655476,-1724.04,0.00043835,120]
[335096582,1723824655486,-1061.46,0.00043835,120]
[335096583,1723824655495,-500.0,0.00043835,120]
[335096584,1723824655504,-848.93,0.00043835,120]
[335096585,1723824655514,-1146.8,0.00043835,120]
[335096586,1723824655523,-500.0,0.00043835,120]
[335096587,1723824655533,-500.0,0.00043835,120]